[Event "Titled Tuesday Blitz June 13 Early 2023"]
[White "Chernobay, Artem"]
[Black "Khamdamova, Afruza"]
[WhiteFideId "4167406"]
[BlackFideId "14210444"]
[WhiteElo "2474"]
[BlackElo "2312"]
[Result "1-0"]
[Round "8"]
[TimeControl "180+2"]
[Date "2023.06.13"]
[WhiteClock "0:00:46"]
[BlackClock "0:00:10"]
[Board "78"]

1. d4 {[%clk 0:03:00]}  Nf6 {[%clk 0:02:58]} 2. c4 {[%clk 0:03:01]}  e6 {[%clk 0:02:59]} 3. Nf3 {[%clk 0:03:00]}  d5 {[%clk 0:02:59]} 4. g3 {[%clk 0:02:59]}  Be7 {[%clk 0:03:00]} 5. Bg2 {[%clk 0:02:59]}  O-O {[%clk 0:03:00]} 6. O-O {[%clk 0:03:00]}  c6 {[%clk 0:02:59]} 7. Nbd2 {[%clk 0:02:59]}  Nbd7 {[%clk 0:02:59]} 8. Qc2 {[%clk 0:02:59]}  Re8 {[%clk 0:02:59]} 9. e4 {[%clk 0:02:58]}  dxe4 {[%clk 0:02:58]} 10. Nxe4 {[%clk 0:02:59]}  Nxe4 {[%clk 0:02:59]} 11. Qxe4 {[%clk 0:02:59]}  Nf6 {[%clk 0:03:00]} 12. Qc2 {[%clk 0:02:57]}  h6 {[%clk 0:02:57]} 13. a3 {[%clk 0:02:52]}  a5 {[%clk 0:02:48]} 14. b3 {[%clk 0:02:51]}  Qc7 {[%clk 0:02:46]} 15. Bb2 {[%clk 0:02:45]}  b6 {[%clk 0:02:42]} 16. Rfe1 {[%clk 0:02:20]}  Bb7 {[%clk 0:02:40]} 17. c5 {[%clk 0:02:20]}  b5 {[%clk 0:02:32]} 18. Ne5 {[%clk 0:02:17]}  Rad8 {[%clk 0:02:29]} 19. Qe2 {[%clk 0:02:09]}  Nd5 {[%clk 0:02:24]} 20. Rad1 {[%clk 0:01:56]}  Bf6 {[%clk 0:02:24]} 21. h4 {[%clk 0:01:53]}  Bxe5 {[%clk 0:02:12]} 22. dxe5 {[%clk 0:01:52]}  Rd7 {[%clk 0:02:12]} 23. Be4 {[%clk 0:01:43]}  Red8 {[%clk 0:02:09]} 24. Bc2 {[%clk 0:01:41]}  Ne7 {[%clk 0:02:00]} 25. Rd6 {[%clk 0:01:41]}  Nf5 {[%clk 0:01:49]} 26. Qe4 {[%clk 0:01:36]}  g6 {[%clk 0:01:34]} 27. h5 {[%clk 0:01:32]}  Kg7 {[%clk 0:01:20]} 28. Qf4 {[%clk 0:01:16]}  g5 {[%clk 0:01:17]} 29. Qf3 {[%clk 0:00:50]}  Qc8 {[%clk 0:00:43]} 30. Bxf5 {[%clk 0:00:48]}  Rxd6 {[%clk 0:00:30]} 31. exd6+ {[%clk 0:00:46]}  Kf8 {[%clk 0:00:26]} 32. Qc3 {[%clk 0:00:46]}  Ke8 {[%clk 0:00:20]} 33. Rxe6+ {[%clk 0:00:46]}  fxe6 {[%clk 0:00:10]} 34. Qh8+ {[%clk 0:00:46]} 1-0


[Site "https://www.chess.com"]

[Event "Titled Tuesday Blitz June 13 Early 2023"]
[White "Estrada Nieto, Julian"]
[Black "Altman, Joshua"]
[WhiteFideId "5101018"]
[BlackFideId "426210"]
[WhiteElo "2161"]
[BlackElo "2028"]
[Result "1-0"]
[Round "8"]
[TimeControl "180+2"]
[Date "2023.06.13"]
[WhiteClock "0:00:17"]
[BlackClock "0:00:13"]
[Board "80"]

1. e4 {[%clk 0:03:00]}  e6 {[%clk 0:02:59]} 2. d4 {[%clk 0:02:58]}  d5 {[%clk 0:03:00]} 3. Nd2 {[%clk 0:02:59]}  c5 {[%clk 0:02:58]} 4. exd5 {[%clk 0:02:59]}  Qxd5 {[%clk 0:02:57]} 5. Ngf3 {[%clk 0:02:59]}  cxd4 {[%clk 0:02:57]} 6. Bc4 {[%clk 0:03:00]}  Qd6 {[%clk 0:02:56]} 7. O-O {[%clk 0:03:00]}  Nf6 {[%clk 0:02:56]} 8. Nb3 {[%clk 0:02:48]}  Nc6 {[%clk 0:02:56]} 9. Nbxd4 {[%clk 0:02:48]}  Nxd4 {[%clk 0:02:54]} 10. Qxd4 {[%clk 0:02:42]}  Qxd4 {[%clk 0:02:54]} 11. Nxd4 {[%clk 0:02:43]}  Bc5 {[%clk 0:02:55]} 12. Nb3 {[%clk 0:02:43]}  Bb6 {[%clk 0:02:53]} 13. Be2 {[%clk 0:02:40]}  Bd7 {[%clk 0:02:44]} 14. a4 {[%clk 0:02:39]}  a5 {[%clk 0:02:43]} 15. Bf3 {[%clk 0:02:34]}  Bc6 {[%clk 0:02:22]} 16. Bxc6+ {[%clk 0:02:33]}  bxc6 {[%clk 0:02:23]} 17. Rd1 {[%clk 0:02:31]}  O-O {[%clk 0:02:12]} 18. Kf1 {[%clk 0:02:11]}  Ng4 {[%clk 0:02:05]} 19. f3 {[%clk 0:02:06]}  Ne5 {[%clk 0:01:49]} 20. Ke2 {[%clk 0:01:57]}  h6 {[%clk 0:01:41]} 21. Bf4 {[%clk 0:01:51]}  Nc4 {[%clk 0:01:40]} 22. Ra2 {[%clk 0:01:51]}  Rfd8 {[%clk 0:01:37]} 23. Rxd8+ {[%clk 0:01:46]}  Rxd8 {[%clk 0:01:36]} 24. Nd2 {[%clk 0:01:47]}  Rd4 {[%clk 0:01:16]} 25. g3 {[%clk 0:01:30]}  g5 {[%clk 0:01:05]} 26. Nxc4 {[%clk 0:01:28]}  Rxc4 {[%clk 0:01:05]} 27. b3 {[%clk 0:01:27]}  Rc3 {[%clk 0:00:47]} 28. Bd2 {[%clk 0:01:25]}  Rc5 {[%clk 0:00:47]} 29. c4 {[%clk 0:01:17]}  Re5+ {[%clk 0:00:44]} 30. Kd3 {[%clk 0:01:17]}  f5 {[%clk 0:00:22]} 31. Rc2 {[%clk 0:01:07]}  Kf7 {[%clk 0:00:19]} 32. Rc1 {[%clk 0:01:02]}  c5 {[%clk 0:00:15]} 33. Bc3 {[%clk 0:00:57]}  Bc7 {[%clk 0:00:13]} 34. Bxe5 {[%clk 0:00:56]}  Bxe5 {[%clk 0:00:14]} 35. Rd1 {[%clk 0:00:46]}  Bd4 {[%clk 0:00:14]} 36. b4 {[%clk 0:00:43]}  axb4 {[%clk 0:00:14]} 37. a5 {[%clk 0:00:43]}  Be5 {[%clk 0:00:09]} 38. a6 {[%clk 0:00:41]}  Bb8 {[%clk 0:00:09]} 39. Ra1 {[%clk 0:00:36]}  Ba7 {[%clk 0:00:09]} 40. Kc2 {[%clk 0:00:35]}  Ke7 {[%clk 0:00:09]} 41. Ra5 {[%clk 0:00:35]}  Kd6 {[%clk 0:00:10]} 42. Rb5 {[%clk 0:00:35]}  Kc6 {[%clk 0:00:08]} 43. Rb7 {[%clk 0:00:35]}  Bb6 {[%clk 0:00:09]} 44. Rb8 {[%clk 0:00:34]}  Kc7 {[%clk 0:00:08]} 45. Re8 {[%clk 0:00:33]}  e5 {[%clk 0:00:07]} 46. Re6 {[%clk 0:00:32]}  f4 {[%clk 0:00:05]} 47. g4 {[%clk 0:00:31]}  Ba5 {[%clk 0:00:04]} 48. Rxe5 {[%clk 0:00:27]}  Kb6 {[%clk 0:00:04]} 49. Re6+ {[%clk 0:00:27]}  Ka7 {[%clk 0:00:05]} 50. Rxh6 {[%clk 0:00:27]}  Bb6 {[%clk 0:00:05]} 51. Rg6 {[%clk 0:00:27]}  Kxa6 {[%clk 0:00:06]} 52. Rxg5 {[%clk 0:00:25]}  Ka5 {[%clk 0:00:06]} 53. Kb3 {[%clk 0:00:25]}  Bc7 {[%clk 0:00:06]} 54. Rf5 {[%clk 0:00:25]}  Kb6 {[%clk 0:00:06]} 55. h4 {[%clk 0:00:24]}  Bd8 {[%clk 0:00:06]} 56. g5 {[%clk 0:00:24]}  Kc6 {[%clk 0:00:06]} 57. g6 {[%clk 0:00:23]}  Kd6 {[%clk 0:00:06]} 58. g7 {[%clk 0:00:23]}  Ke6 {[%clk 0:00:07]} 59. Rf8 {[%clk 0:00:22]}  Bf6 {[%clk 0:00:06]} 60. g8=Q+ {[%clk 0:00:22]}  Kf5 {[%clk 0:00:06]} 61. Qg4+ {[%clk 0:00:21]}  Ke5 {[%clk 0:00:06]} 62. Rxf6 {[%clk 0:00:21]}  Kxf6 {[%clk 0:00:06]} 63. Qxf4+ {[%clk 0:00:21]}  Kg6 {[%clk 0:00:07]} 64. Qg5+ {[%clk 0:00:21]}  Kh7 {[%clk 0:00:08]} 65. Qxc5 {[%clk 0:00:21]}  Kg6 {[%clk 0:00:08]} 66. Kxb4 {[%clk 0:00:21]}  Kh6 {[%clk 0:00:09]} 67. Qg5+ {[%clk 0:00:21]}  Kh7 {[%clk 0:00:10]} 68. c5 {[%clk 0:00:20]}  Kh8 {[%clk 0:00:10]} 69. c6 {[%clk 0:00:21]}  Kh7 {[%clk 0:00:11]} 70. c7 {[%clk 0:00:20]}  Kh8 {[%clk 0:00:11]} 71. f4 {[%clk 0:00:18]}  Kh7 {[%clk 0:00:12]} 72. f5 {[%clk 0:00:17]}  Kh8 {[%clk 0:00:12]} 73. c8=Q+ {[%clk 0:00:18]}  Kh7 {[%clk 0:00:13]} 74. Qcg8# {[%clk 0:00:17]} 1-0


[Site "https://www.chess.com"]

[Event "Titled Tuesday Blitz June 13 Early 2023"]
[White "ArtemDyachuk"]
[Black "De La Villa Garcia, Jesus Maria"]
[BlackFideId "2200040"]
[WhiteElo "2618"]
[BlackElo "2460"]
[Result "1-0"]
[Round "8"]
[TimeControl "180+2"]
[Date "2023.06.13"]
[WhiteClock "0:02:29"]
[BlackClock "0:01:49"]
[Board "81"]

1. e4 {[%clk 0:03:00]}  c6 {[%clk 0:02:57]} 2. d4 {[%clk 0:02:57]}  d5 {[%clk 0:02:57]} 3. Nc3 {[%clk 0:02:58]}  dxe4 {[%clk 0:02:57]} 4. Nxe4 {[%clk 0:02:57]}  Nf6 {[%clk 0:02:58]} 5. Nxf6+ {[%clk 0:02:57]}  exf6 {[%clk 0:02:59]} 6. c3 {[%clk 0:02:57]}  Bd6 {[%clk 0:03:00]} 7. Bd3 {[%clk 0:02:57]}  O-O {[%clk 0:03:00]} 8. Qc2 {[%clk 0:02:57]}  Re8+ {[%clk 0:03:01]} 9. Ne2 {[%clk 0:02:57]}  h5 {[%clk 0:03:02]} 10. Bd2 {[%clk 0:02:53]}  Nd7 {[%clk 0:03:01]} 11. O-O-O {[%clk 0:02:52]}  Nf8 {[%clk 0:03:01]} 12. Ng3 {[%clk 0:02:50]}  h4 {[%clk 0:02:58]} 13. Ne4 {[%clk 0:02:50]}  Bc7 {[%clk 0:02:52]} 14. Rhe1 {[%clk 0:02:45]}  Ng6 {[%clk 0:02:40]} 15. Nxf6+ {[%clk 0:02:36]}  gxf6 {[%clk 0:02:29]} 16. Bxg6 {[%clk 0:02:36]}  Rxe1 {[%clk 0:02:20]} 17. Rxe1 {[%clk 0:02:37]}  Be6 {[%clk 0:02:17]} 18. Bf5 {[%clk 0:02:34]}  Bxa2 {[%clk 0:02:12]} 19. Qe4 {[%clk 0:02:31]}  Be6 {[%clk 0:01:53]} 20. Bxe6 {[%clk 0:02:30]}  fxe6 {[%clk 0:01:53]} 21. Qg6+ {[%clk 0:02:30]}  Kf8 {[%clk 0:01:49]} 22. Rxe6 {[%clk 0:02:29]} 1-0


[Site "https://www.chess.com"]

[Event "Titled Tuesday Blitz June 13 Early 2023"]
[White "Kvaloy, Aksel Bu"]
[Black "FunnyDuck66"]
[WhiteFideId "1528815"]
[WhiteElo "2318"]
[BlackElo "2452"]
[Result "1-0"]
[Round "8"]
[TimeControl "180+2"]
[Date "2023.06.13"]
[WhiteClock "0:01:04"]
[BlackClock "0:00:51"]
[Board "82"]

1. e4 {[%clk 0:02:57]}  c6 {[%clk 0:03:00]} 2. d4 {[%clk 0:02:57]}  d5 {[%clk 0:02:59]} 3. exd5 {[%clk 0:02:57]}  cxd5 {[%clk 0:03:00]} 4. Bd3 {[%clk 0:02:58]}  Nc6 {[%clk 0:03:00]} 5. c3 {[%clk 0:02:55]}  Nf6 {[%clk 0:03:01]} 6. h3 {[%clk 0:02:54]}  g6 {[%clk 0:02:59]} 7. Nf3 {[%clk 0:02:52]}  Bf5 {[%clk 0:02:59]} 8. Ne5 {[%clk 0:02:48]}  Bxd3 {[%clk 0:02:54]} 9. Nxd3 {[%clk 0:02:49]}  e6 {[%clk 0:02:53]} 10. O-O {[%clk 0:02:46]}  Be7 {[%clk 0:02:48]} 11. Bh6 {[%clk 0:02:46]}  Bf8 {[%clk 0:02:47]} 12. Bg5 {[%clk 0:02:44]}  Be7 {[%clk 0:02:47]} 13. Nd2 {[%clk 0:02:42]}  O-O {[%clk 0:02:46]} 14. Bxf6 {[%clk 0:02:40]}  Bxf6 {[%clk 0:02:47]} 15. Qf3 {[%clk 0:02:40]}  Bg7 {[%clk 0:02:45]} 16. g3 {[%clk 0:02:39]}  b5 {[%clk 0:02:44]} 17. a3 {[%clk 0:02:38]}  a5 {[%clk 0:02:43]} 18. b4 {[%clk 0:02:38]}  a4 {[%clk 0:02:33]} 19. Nc5 {[%clk 0:02:38]}  e5 {[%clk 0:02:24]} 20. dxe5 {[%clk 0:02:32]}  Nxe5 {[%clk 0:02:21]} 21. Qg2 {[%clk 0:02:32]}  Nc4 {[%clk 0:02:20]} 22. Rad1 {[%clk 0:02:29]}  Qg5 {[%clk 0:02:08]} 23. h4 {[%clk 0:02:25]}  Qf5 {[%clk 0:02:02]} 24. Nf3 {[%clk 0:02:05]}  Bxc3 {[%clk 0:01:58]} 25. g4 {[%clk 0:02:01]}  Qf4 {[%clk 0:01:54]} 26. Rxd5 {[%clk 0:02:00]}  Nxa3 {[%clk 0:01:52]} 27. Nd7 {[%clk 0:01:55]}  Rfd8 {[%clk 0:01:50]} 28. Rfd1 {[%clk 0:01:54]}  Qxb4 {[%clk 0:01:41]} 29. Ng5 {[%clk 0:01:44]}  Re8 {[%clk 0:01:22]} 30. Qf3 {[%clk 0:01:42]}  Re7 {[%clk 0:01:18]} 31. h5 {[%clk 0:01:17]}  Bg7 {[%clk 0:01:11]} 32. h6 {[%clk 0:01:16]}  Bxh6 {[%clk 0:01:08]} 33. Nf6+ {[%clk 0:01:16]}  Kg7 {[%clk 0:01:08]} 34. Ngxh7 {[%clk 0:01:10]}  Qf4 {[%clk 0:01:00]} 35. Qxa3 {[%clk 0:01:05]}  Qxg4+ {[%clk 0:00:51]} 36. Nxg4 {[%clk 0:01:04]} 1-0


[Site "https://www.chess.com"]

[Event "Titled Tuesday Blitz June 13 Early 2023"]
[White "Torres Hernandez, Leslie Carolin"]
[Black "Nagare Kaivalya Sandip"]
[WhiteFideId "8400504"]
[BlackFideId "25957929"]
[WhiteElo "1920"]
[BlackElo "2024"]
[Result "0-1"]
[Round "8"]
[TimeControl "180+2"]
[Date "2023.06.13"]
[WhiteClock "0:00:01"]
[BlackClock "0:01:40"]
[Board "84"]

1. e4 {[%clk 0:03:00]}  c5 {[%clk 0:02:57]} 2. Nf3 {[%clk 0:02:57]}  d6 {[%clk 0:02:57]} 3. Bb5+ {[%clk 0:02:57]}  Nd7 {[%clk 0:02:57]} 4. a4 {[%clk 0:02:57]}  Nf6 {[%clk 0:02:56]} 5. Nc3 {[%clk 0:02:57]}  e5 {[%clk 0:02:55]} 6. O-O {[%clk 0:02:52]}  Be7 {[%clk 0:02:54]} 7. d3 {[%clk 0:02:47]}  O-O {[%clk 0:02:54]} 8. Nd2 {[%clk 0:02:25]}  a6 {[%clk 0:02:49]} 9. Bc4 {[%clk 0:02:25]}  Nb6 {[%clk 0:02:42]} 10. Bb3 {[%clk 0:02:22]}  Be6 {[%clk 0:02:41]} 11. a5 {[%clk 0:02:20]}  Nbd7 {[%clk 0:02:41]} 12. Bxe6 {[%clk 0:01:32]}  fxe6 {[%clk 0:02:40]} 13. Re1 {[%clk 0:01:23]}  Qe8 {[%clk 0:02:40]} 14. Nc4 {[%clk 0:01:21]}  Qg6 {[%clk 0:02:35]} 15. Qf3 {[%clk 0:01:17]}  Ng4 {[%clk 0:02:33]} 16. Qg3 {[%clk 0:01:11]}  Qh5 {[%clk 0:01:58]} 17. h3 {[%clk 0:00:40]}  Nxf2 {[%clk 0:01:51]} 18. Be3 {[%clk 0:00:16]}  Bh4 {[%clk 0:01:51]} 19. Qh2 {[%clk 0:00:17]}  Qg6 {[%clk 0:01:50]} 20. g4 {[%clk 0:00:08]}  h5 {[%clk 0:01:50]} 21. Qg2 {[%clk 0:00:07]}  hxg4 {[%clk 0:01:49]} 22. hxg4 {[%clk 0:00:08]}  Nxg4 {[%clk 0:01:46]} 23. Nxd6 {[%clk 0:00:07]}  Bxe1 {[%clk 0:01:44]} 24. Rxe1 {[%clk 0:00:08]}  Qh5 {[%clk 0:01:43]} 25. Nxb7 {[%clk 0:00:01]}  Rf6 {[%clk 0:01:40]} 0-1


[Site "https://www.chess.com"]

[Event "Titled Tuesday Blitz June 13 Early 2023"]
[White "Fernandez Siles, Luis"]
[Black "Perez, Maximiliano"]
[WhiteFideId "2209420"]
[BlackFideId "117234"]
[WhiteElo "2195"]
[BlackElo "2334"]
[Result "1-0"]
[Round "8"]
[TimeControl "180+2"]
[Date "2023.06.13"]
[WhiteClock "0:00:11"]
[BlackClock "0:01:02"]
[Board "86"]

1. d4 {[%clk 0:03:00]}  Nf6 {[%clk 0:02:59]} 2. c4 {[%clk 0:03:00]}  e6 {[%clk 0:02:59]} 3. Nf3 {[%clk 0:03:00]}  d5 {[%clk 0:02:57]} 4. Nc3 {[%clk 0:02:58]}  dxc4 {[%clk 0:02:57]} 5. e3 {[%clk 0:02:51]}  c5 {[%clk 0:02:53]} 6. Bxc4 {[%clk 0:02:50]}  cxd4 {[%clk 0:02:53]} 7. exd4 {[%clk 0:02:50]}  Be7 {[%clk 0:02:52]} 8. O-O {[%clk 0:02:50]}  O-O {[%clk 0:02:53]} 9. Qe2 {[%clk 0:02:50]}  b6 {[%clk 0:02:53]} 10. Rd1 {[%clk 0:02:49]}  Bb7 {[%clk 0:02:52]} 11. a3 {[%clk 0:02:47]}  Nbd7 {[%clk 0:02:47]} 12. Ba2 {[%clk 0:02:35]}  Rc8 {[%clk 0:02:46]} 13. Bg5 {[%clk 0:02:20]}  Re8 {[%clk 0:02:45]} 14. Rac1 {[%clk 0:02:15]}  a6 {[%clk 0:02:45]} 15. Bb1 {[%clk 0:02:10]}  b5 {[%clk 0:02:44]} 16. Ne5 {[%clk 0:02:09]}  Nd5 {[%clk 0:02:32]} 17. Bxh7+ {[%clk 0:01:22]}  Kxh7 {[%clk 0:02:24]} 18. Qh5+ {[%clk 0:01:22]}  Kg8 {[%clk 0:02:25]} 19. Qxf7+ {[%clk 0:01:23]}  Kh7 {[%clk 0:02:25]} 20. Rd3 {[%clk 0:01:14]}  Bxg5 {[%clk 0:02:18]} 21. Rh3+ {[%clk 0:01:14]}  Bh4 {[%clk 0:02:18]} 22. g3 {[%clk 0:00:58]}  Nxe5 {[%clk 0:02:14]} 23. dxe5 {[%clk 0:00:45]}  Nxc3 {[%clk 0:02:14]} 24. bxc3 {[%clk 0:00:45]}  Rxc3 {[%clk 0:02:07]} 25. Qh5+ {[%clk 0:00:20]}  Kg8 {[%clk 0:02:07]} 26. Rxc3 {[%clk 0:00:21]}  Bg5 {[%clk 0:01:18]} 27. Rc7 {[%clk 0:00:19]}  Bh6 {[%clk 0:01:03]} 28. Qf7+ {[%clk 0:00:18]}  Kh7 {[%clk 0:01:02]} 29. Qxg7# {[%clk 0:00:11]} 1-0


[Site "https://www.chess.com"]

[Event "Titled Tuesday Blitz June 13 Early 2023"]
[White "ATM622"]
[Black "Garrido, Denis"]
[BlackFideId "601217"]
[WhiteElo "2580"]
[BlackElo "2361"]
[Result "1-0"]
[Round "8"]
[TimeControl "180+2"]
[Date "2023.06.13"]
[WhiteClock "0:00:48"]
[BlackClock "0:00:10"]
[Board "88"]

1. d4 {[%clk 0:02:59]}  Nf6 {[%clk 0:02:58]} 2. c4 {[%clk 0:02:59]}  e6 {[%clk 0:02:56]} 3. g3 {[%clk 0:03:00]}  d5 {[%clk 0:02:56]} 4. Bg2 {[%clk 0:03:00]}  Be7 {[%clk 0:02:55]} 5. Nf3 {[%clk 0:03:00]}  O-O {[%clk 0:02:52]} 6. O-O {[%clk 0:03:01]}  c6 {[%clk 0:02:50]} 7. Nbd2 {[%clk 0:03:01]}  b6 {[%clk 0:02:48]} 8. Qc2 {[%clk 0:03:01]}  Bb7 {[%clk 0:02:48]} 9. e4 {[%clk 0:03:02]}  Na6 {[%clk 0:02:48]} 10. b3 {[%clk 0:03:01]}  c5 {[%clk 0:02:45]} 11. e5 {[%clk 0:02:59]}  Nd7 {[%clk 0:02:43]} 12. Bb2 {[%clk 0:03:00]}  dxc4 {[%clk 0:02:39]} 13. Ng5 {[%clk 0:03:00]}  Bxg5 {[%clk 0:02:35]} 14. Bxb7 {[%clk 0:02:59]}  Nb4 {[%clk 0:02:32]} 15. Qc3 {[%clk 0:02:33]}  cxd4 {[%clk 0:02:30]} 16. Qxd4 {[%clk 0:02:32]}  Nc2 {[%clk 0:02:16]} 17. Qxc4 {[%clk 0:02:08]}  Nxa1 {[%clk 0:02:13]} 18. Bxa8 {[%clk 0:02:08]}  Qxa8 {[%clk 0:02:10]} 19. Ne4 {[%clk 0:02:08]}  Nxb3 {[%clk 0:01:58]} 20. Nxg5 {[%clk 0:02:04]}  Nbc5 {[%clk 0:01:56]} 21. Rd1 {[%clk 0:01:52]}  h6 {[%clk 0:01:51]} 22. Nh3 {[%clk 0:01:51]}  Qf3 {[%clk 0:01:49]} 23. Qc2 {[%clk 0:01:46]}  Nb8 {[%clk 0:01:16]} 24. Nf4 {[%clk 0:01:44]}  Nc6 {[%clk 0:01:13]} 25. Qe2 {[%clk 0:01:41]}  Qxe2 {[%clk 0:01:12]} 26. Nxe2 {[%clk 0:01:42]}  Nb4 {[%clk 0:01:11]} 27. Ba3 {[%clk 0:01:40]}  Nbd3 {[%clk 0:01:06]} 28. Bxc5 {[%clk 0:01:37]}  Nxc5 {[%clk 0:01:05]} 29. Kg2 {[%clk 0:01:33]}  Rc8 {[%clk 0:01:05]} 30. f4 {[%clk 0:01:31]}  Kf8 {[%clk 0:01:05]} 31. Kf3 {[%clk 0:01:27]}  Ke7 {[%clk 0:01:04]} 32. Rd6 {[%clk 0:01:25]}  Rd8 {[%clk 0:01:02]} 33. Rxd8 {[%clk 0:01:19]}  Kxd8 {[%clk 0:01:03]} 34. Nd4 {[%clk 0:01:16]}  Kd7 {[%clk 0:00:59]} 35. g4 {[%clk 0:01:14]}  a6 {[%clk 0:00:53]} 36. h4 {[%clk 0:01:12]}  b5 {[%clk 0:00:52]} 37. Ke3 {[%clk 0:01:09]}  Na4 {[%clk 0:00:47]} 38. h5 {[%clk 0:01:07]}  Nc3 {[%clk 0:00:47]} 39. a3 {[%clk 0:01:04]}  Nd5+ {[%clk 0:00:47]} 40. Ke4 {[%clk 0:01:01]}  b4 {[%clk 0:00:48]} 41. axb4 {[%clk 0:00:59]}  Nxb4 {[%clk 0:00:48]} 42. g5 {[%clk 0:01:00]}  a5 {[%clk 0:00:46]} 43. f5 {[%clk 0:00:55]}  exf5+ {[%clk 0:00:18]} 44. Nxf5 {[%clk 0:00:53]}  g6 {[%clk 0:00:16]} 45. gxh6 {[%clk 0:00:50]}  gxf5+ {[%clk 0:00:14]} 46. Kxf5 {[%clk 0:00:51]}  Nd5 {[%clk 0:00:12]} 47. h7 {[%clk 0:00:50]}  Ne7+ {[%clk 0:00:10]} 48. Kf6 {[%clk 0:00:48]} 1-0


[Site "https://www.chess.com"]

[Event "Titled Tuesday Blitz June 13 Early 2023"]
[White "Bruedigam, Martin"]
[Black "Ovetchkin, Roman"]
[WhiteFideId "24608033"]
[BlackFideId "4119991"]
[WhiteElo "2331"]
[BlackElo "2398"]
[Result "0-1"]
[Round "8"]
[TimeControl "180+2"]
[Date "2023.06.13"]
[WhiteClock "0:00:11"]
[BlackClock "0:00:16"]
[Board "92"]

1. d4 {[%clk 0:02:56]}  Nf6 {[%clk 0:02:59]} 2. c4 {[%clk 0:02:57]}  g6 {[%clk 0:02:59]} 3. f3 {[%clk 0:02:56]}  Bg7 {[%clk 0:02:59]} 4. e4 {[%clk 0:02:56]}  d6 {[%clk 0:03:00]} 5. Nc3 {[%clk 0:02:57]}  O-O {[%clk 0:03:00]} 6. Be3 {[%clk 0:02:58]}  a6 {[%clk 0:03:01]} 7. Qd2 {[%clk 0:02:53]}  Nbd7 {[%clk 0:02:59]} 8. Nh3 {[%clk 0:02:51]}  c5 {[%clk 0:02:57]} 9. d5 {[%clk 0:02:50]}  b5 {[%clk 0:02:58]} 10. cxb5 {[%clk 0:02:47]}  Qa5 {[%clk 0:02:57]} 11. b6 {[%clk 0:02:44]}  Nxb6 {[%clk 0:02:55]} 12. Nf2 {[%clk 0:02:45]}  Nfd7 {[%clk 0:02:49]} 13. Be2 {[%clk 0:02:44]}  Ne5 {[%clk 0:02:48]} 14. Ncd1 {[%clk 0:02:20]}  Qxd2+ {[%clk 0:02:29]} 15. Bxd2 {[%clk 0:02:21]}  e6 {[%clk 0:02:28]} 16. Ne3 {[%clk 0:02:02]}  exd5 {[%clk 0:02:24]} 17. exd5 {[%clk 0:02:02]}  Bb7 {[%clk 0:02:19]} 18. f4 {[%clk 0:01:52]}  Ned7 {[%clk 0:02:16]} 19. Bf3 {[%clk 0:01:47]}  Na4 {[%clk 0:02:06]} 20. Nc4 {[%clk 0:01:21]}  Rfe8+ {[%clk 0:02:03]} 21. Kd1 {[%clk 0:01:19]}  Ndb6 {[%clk 0:01:47]} 22. Nxd6 {[%clk 0:01:18]}  Bxd5 {[%clk 0:01:21]} 23. Nxe8 {[%clk 0:01:12]}  Bxf3+ {[%clk 0:01:16]} 24. gxf3 {[%clk 0:01:12]}  Rxe8 {[%clk 0:01:16]} 25. Kc2 {[%clk 0:01:07]}  Bxb2 {[%clk 0:00:56]} 26. Rae1 {[%clk 0:00:57]}  Rc8 {[%clk 0:00:51]} 27. Ne4 {[%clk 0:00:41]}  c4 {[%clk 0:00:34]} 28. Bc3 {[%clk 0:00:38]}  Bxc3 {[%clk 0:00:28]} 29. Nxc3 {[%clk 0:00:37]}  Nxc3 {[%clk 0:00:29]} 30. Kxc3 {[%clk 0:00:37]}  Nd5+ {[%clk 0:00:29]} 31. Kd4 {[%clk 0:00:27]}  Nxf4 {[%clk 0:00:29]} 32. Re4 {[%clk 0:00:20]}  Ne6+ {[%clk 0:00:20]} 33. Kc3 {[%clk 0:00:20]}  Rc5 {[%clk 0:00:21]} 34. Rxc4 {[%clk 0:00:20]}  Rf5 {[%clk 0:00:21]} 35. Rf1 {[%clk 0:00:19]}  Ng5 {[%clk 0:00:19]} 36. f4 {[%clk 0:00:18]}  Ne6 {[%clk 0:00:19]} 37. a4 {[%clk 0:00:17]}  a5 {[%clk 0:00:18]} 38. Re4 {[%clk 0:00:15]}  Rc5+ {[%clk 0:00:16]} 39. Kb3 {[%clk 0:00:15]}  Rh5 {[%clk 0:00:16]} 40. Rf2 {[%clk 0:00:11]}  Nc5+ {[%clk 0:00:16]} 0-1


[Site "https://www.chess.com"]

[Event "Titled Tuesday Blitz June 13 Early 2023"]
[White "Kielinkei"]
[Black "Moral Garcia, Serafin"]
[BlackFideId "2201925"]
[WhiteElo "2485"]
[BlackElo "2274"]
[Result "0-1"]
[Round "8"]
[TimeControl "180+2"]
[Date "2023.06.13"]
[WhiteClock "0:00:04"]
[BlackClock "0:00:36"]
[Board "93"]

1. e4 {[%clk 0:03:00]}  e5 {[%clk 0:02:56]} 2. Nf3 {[%clk 0:02:57]}  Nc6 {[%clk 0:02:57]} 3. Bc4 {[%clk 0:02:58]}  Bc5 {[%clk 0:02:56]} 4. c3 {[%clk 0:02:57]}  Nf6 {[%clk 0:02:56]} 5. d3 {[%clk 0:02:58]}  a6 {[%clk 0:02:56]} 6. O-O {[%clk 0:02:57]}  Ba7 {[%clk 0:02:56]} 7. h3 {[%clk 0:02:52]}  d6 {[%clk 0:02:56]} 8. Re1 {[%clk 0:02:47]}  O-O {[%clk 0:02:55]} 9. Nbd2 {[%clk 0:02:39]}  Na5 {[%clk 0:02:54]} 10. Nf1 {[%clk 0:02:35]}  Nxc4 {[%clk 0:02:50]} 11. dxc4 {[%clk 0:02:36]}  Be6 {[%clk 0:02:50]} 12. b3 {[%clk 0:02:32]}  b5 {[%clk 0:02:47]} 13. cxb5 {[%clk 0:02:30]}  axb5 {[%clk 0:02:47]} 14. Be3 {[%clk 0:02:28]}  Qd7 {[%clk 0:02:42]} 15. Bxa7 {[%clk 0:02:27]}  Rxa7 {[%clk 0:02:41]} 16. Ng3 {[%clk 0:02:24]}  Rfa8 {[%clk 0:02:40]} 17. Qc2 {[%clk 0:02:18]}  Ra3 {[%clk 0:02:37]} 18. Qb2 {[%clk 0:02:04]}  Qc6 {[%clk 0:02:35]} 19. Ng5 {[%clk 0:01:12]}  Bd7 {[%clk 0:02:22]} 20. Re2 {[%clk 0:00:50]}  h6 {[%clk 0:02:21]} 21. Nf3 {[%clk 0:00:50]}  Qa6 {[%clk 0:02:12]} 22. Rc2 {[%clk 0:00:44]}  Be6 {[%clk 0:02:09]} 23. Nd2 {[%clk 0:00:45]}  Nd7 {[%clk 0:01:55]} 24. Ne2 {[%clk 0:00:40]}  Nc5 {[%clk 0:01:51]} 25. Nc1 {[%clk 0:00:40]}  f5 {[%clk 0:01:12]} 26. c4 {[%clk 0:00:20]}  bxc4 {[%clk 0:01:07]} 27. Nxc4 {[%clk 0:00:20]}  Bxc4 {[%clk 0:01:04]} 28. Rxc4 {[%clk 0:00:20]}  Nxe4 {[%clk 0:01:04]} 29. Rxc7 {[%clk 0:00:16]}  Qb6 {[%clk 0:00:58]} 30. Rc4 {[%clk 0:00:12]}  d5 {[%clk 0:00:51]} 31. Rc2 {[%clk 0:00:10]}  d4 {[%clk 0:00:51]} 32. Nd3 {[%clk 0:00:10]}  Qd6 {[%clk 0:00:44]} 33. f3 {[%clk 0:00:08]}  Nc3 {[%clk 0:00:44]} 34. Kh1 {[%clk 0:00:04]}  Rxa2 {[%clk 0:00:43]} 35. Rxa2 {[%clk 0:00:05]}  Rxa2 {[%clk 0:00:43]} 36. Qc1 {[%clk 0:00:05]}  Rxc2 {[%clk 0:00:43]} 37. Qxc2 {[%clk 0:00:06]}  e4 {[%clk 0:00:43]} 38. fxe4 {[%clk 0:00:06]}  fxe4 {[%clk 0:00:44]} 39. Nf2 {[%clk 0:00:07]}  e3 {[%clk 0:00:44]} 40. Nd3 {[%clk 0:00:06]}  Qg3 {[%clk 0:00:41]} 41. Qc1 {[%clk 0:00:04]}  e2 {[%clk 0:00:37]} 42. Qd2 {[%clk 0:00:04]}  Qxd3 {[%clk 0:00:37]} 43. Qxd3 {[%clk 0:00:04]}  e1=Q+ {[%clk 0:00:37]} 44. Kh2 {[%clk 0:00:05]}  Qe5+ {[%clk 0:00:37]} 45. Kh1 {[%clk 0:00:05]}  Ne4 {[%clk 0:00:37]} 46. Qc4+ {[%clk 0:00:04]}  Kh8 {[%clk 0:00:36]} 47. Qd3 {[%clk 0:00:04]}  Nf2+ {[%clk 0:00:36]} 0-1


[Site "https://www.chess.com"]